bitfinex/quotes_ETHUSD_20240717
["timestamp","ask_amount","ask_price","bid_price","bid_amount"]
[1721205095160,0.005,3505.1,3504.5,2.85345]
[1721205096069,0.005,3505.1,3504.0,2.85381]
[1721205096274,0.005,3505.1,3504.3,2.85363]
[1721205096807,0.005,3505.1,3504.4,2.85354]
[1721205097102,0.005,3505.1,3503.7,1.7]
[1721205097103,0.005,3505.1,3504.5,2.85347]
[1721205098090,0.005,3505.1,3504.6,2.85337]
[1721205098292,0.005,3505.1,3504.7,2.8533]
[1721205098699,0.005,3505.1,3505.0,2.85306]
[1721205100011,0.005,3505.1,3505.0,10.42612]
[1721205100213,0.005,3505.1,3505.0,8.72612]
[1721205100580,0.005,3505.1,3505.0,10.97612]
[1721205101312,0.005,3505.1,3505.0,10.42612]
[1721205101807,0.005,3505.1,3505.0,13.27918]
[1721205102003,0.005,3505.1,3505.0,13.82918]
[1721205102717,0.005,3505.1,3505.0,9.27612]
[1721205102896,0.005,3505.1,3505.0,8.72612]
[1721205103273,0.005,3505.1,3505.0,13.27918]
[1721205103498,0.005,3505.1,3505.0,13.82918]
[1721205103876,0.005,3505.1,3505.0,10.97612]
[1721205104092,0.005,3505.1,3505.0,13.27918]
[1721205104292,0.005,3505.1,3505.0,13.82918]
[1721205106001,0.005,3505.1,3505.0,8.72612]
[1721205106389,0.005,3505.1,3504.2,4.55365]
[1721205106589,0.005,3505.1,3504.9,2.85309]
[1721205106824,0.005,3505.1,3505.0,2.85306]
[1721205107394,0.005,3505.1,3504.7,5.87324]
[1721205107599,0.005,3505.1,3504.8,5.87322]
[1721205107796,0.005,3505.1,3504.2,2.8537]
[1721205108000,0.005,3505.1,3504.7,2.85328]
[1721205108319,0.005,3505.1,3504.5,2.85341]
[1721205108495,0.005,3505.1,3504.6,2.85336]
[1721205109632,0.005,3505.1,3504.7,2.8533]
[1721205109831,0.005,3505.1,3504.5,2.85346]
[1721205110033,0.005,3505.1,3504.6,2.85338]
[1721205110210,0.005,3505.1,3504.7,2.85326]
[1721205110406,0.005,3505.1,3504.8,2.85322]
[1721205110595,0.005,3505.1,3504.7,2.85325]
[1721205110802,0.005,3505.1,3505.0,2.85306]
[1721205112138,0.005,3505.1,3504.5,3.02]
[1721205112300,0.005,3505.1,3504.6,2.85338]
[1721205112643,0.005,3505.1,3504.4,2.85348]
[1721205112816,2.85799,3505.1,3504.3,2.85363]
[1721205113204,0.005,3505.1,3504.4,3.02]
[1721205113402,0.005,3505.1,3503.3,0.2871]
[1721205113403,0.005,3505.1,3505.0,2.85306]
[1721205113720,0.005,3505.1,3505.0,5.70612]
[1721205115148,0.005,3505.1,3504.8,2.85322]
[1721205115507,0.005,3505.1,3504.9,2.85314]
[1721205115711,2.2831,3505.1,3504.7,2.85324]
[1721205115904,2.2831,3505.1,3504.8,2.85321]
[1721205116439,2.2831,3505.1,3504.6,2.85338]
[1721205116440,2.2831,3505.1,3504.7,2.8533]
[1721205116797,2.2831,3505.1,3504.0,2.85387]
[1721205116798,2.2831,3505.1,3504.2,3.02]
[1721205116999,2.2831,3505.1,3504.6,2.85337]
[1721205117504,2.2831,3505.1,3504.7,2.85329]
[1721205118061,0.005,3505.1,3504.9,2.85314]
[1721205119142,0.005,3505.1,3504.1,2.85378]
[1721205119348,0.005,3505.1,3504.5,2.85347]
[1721205119850,0.005,3505.1,3504.2,3.02]
[1721205119851,0.005,3505.1,3504.9,3.02]
[1721205120047,0.005,3505.1,3505.0,5.70612]
[1721205121958,0.005,3505.1,3505.0,2.85306]
[1721205122706,0.005,3505.1,3504.9,2.85311]
[1721205122961,0.005,3505.1,3504.7,2.85327]
[1721205123112,0.005,3505.1,3504.9,2.85313]
[1721205124074,0.005,3505.1,3504.0,0.29584675]
[1721205124075,0.005,3505.1,3504.7,2.85323]
[1721205124361,0.005,3505.1,3504.4,2.85355]
[1721205124563,0.005,3505.1,3504.5,2.85345]
[1721205124726,0.005,3505.1,3504.8,2.85316]
[1721205125249,0.005,3505.1,3505.0,2.85306]
[1721205127344,0.005,3505.1,3505.0,5.76317143]
[1721205127546,2.4291,3506.2,3505.8,2.8524]
[1721205127749,2.4291,3506.2,3505.9,2.85232]
[1721205129253,2.4291,3506.2,3505.2,5.87287]
[1721205129254,2.85218,3506.1,3505.3,2.85276]
[1721205130611,3.66551,3506.1,3505.2,2.85283]
[1721205130835,3.66551,3506.1,3504.6,1.48778123]
[1721205130836,3.378,3505.9,3504.9,2.85311]
[1721205131057,3.378,3505.9,3504.6,3.02]
[1721205131058,3.378,3505.9,3505.2,2.85289]
[1721205131238,2.85229,3506.0,3505.1,2.85293]
[1721205131913,2.85229,3506.0,3505.1,2.85292]
[1721205132268,2.85243,3505.8,3504.9,2.85311]
[1721205132619,2.8525,3505.7,3504.9,2.85311]
[1721205132857,2.8525,3505.7,3505.0,2.85306]
[1721205133568,2.85257,3505.6,3504.5,0.29581506]
[1721205133718,2.85257,3505.6,3504.8,2.8532]
[1721205134854,2.85257,3505.6,3504.5,0.29581506]
[1721205134855,2.85275,3505.4,3504.7,2.8533]
[1721205135592,2.3858,3505.2,3504.5,0.29581506]
[1721205135800,2.3858,3504.6,3504.5,0.29581506]
[1721205135939,2.3858,3504.6,3503.7,2.08862584]
[1721205135940,2.3858,3504.6,3503.7,2.85407]
[1721205136143,2.3858,3504.6,3503.2,1.7]
[1721205136144,2.3858,3504.6,3504.2,2.85368]
[1721205136447,2.3858,3504.6,3504.3,2.85358]
[1721205136643,2.3858,3504.6,3504.1,2.85374]
[1721205136844,2.3858,3504.6,3503.9,2.8539]
[1721205137158,2.3858,3504.6,3503.8,0.29629244]
[1721205137159,8.616614,3504.6,3503.8,0.29629244]
[1721205137359,5.763144,3504.6,3503.8,0.29629244]
[1721205137566,2.8538,3504.1,3503.2,2.85447]
[1721205137853,2.8538,3504.1,3503.3,2.85443]
[1721205138154,2.8538,3504.1,3503.5,0.29628341]
[1721205138800,0.89740475,3504.4,3503.7,2.85412]
[1721205138962,2.85355,3504.4,3503.7,2.85412]
[1721205140185,2.85388,3504.0,3503.5,0.29628341]
[1721205140400,2.85402,3503.9,3503.5,0.29628341]
[1721205140558,2.85402,3503.9,3502.1,3.0]
[1721205140884,2.85402,3503.9,3503.1,5.70906]
[1721205141086,2.85402,3503.9,3503.1,2.85453]
[1721205141268,2.85402,3503.9,3502.9,2.85476]
[1721205141269,2.85404,3503.8,3502.9,2.85476]
[1721205141582,2.85404,3503.8,3503.0,0.29629795]
[1721205141583,2.8542,3503.6,3503.0,0.29629795]
[1721205142303,4.41197023,3503.8,3503.0,0.29629795]
[1721205142499,2.85423,3503.6,3503.0,0.29629795]
[1721205143289,2.85461,3503.1,3503.0,0.29629795]
[1721205143502,2.85461,3503.1,3502.1,2.85536]
[1721205143503,2.85461,3503.1,3502.4,2.85516]
[1721205143690,2.85469,3503.0,3502.2,3.15165274]
[1721205144231,2.85478,3502.9,3502.2,0.29637274]
[1721205144378,5.27307,3502.8,3502.2,0.29637274]
[1721205145010,2.4182,3502.8,3502.2,0.29637274]
[1721205145513,2.4182,3502.8,3502.3,2.85525]
[1721205145675,2.3319,3503.4,3502.5,2.85503]
[1721205145892,2.3319,3503.4,3502.6,2.85499]
[1721205146091,2.85445,3503.3,3502.4,2.85512]
[1721205146320,5.1863,3503.4,3502.5,2.85509]
[1721205146837,5.1863,3503.4,3502.6,2.85497]
[1721205146979,5.1863,3503.4,3502.2,3.31637274]
[1721205146980,2.3319,3503.4,3502.2,3.31637274]
[1721205147177,2.3319,3503.4,3502.9,2.85476]
[1721205149334,2.4109,3503.9,3503.1,2.85459]
[1721205149639,4.04989967,3504.7,3503.8,2.85397]
[1721205149640,2.4109,3504.6,3503.8,2.85397]
[1721205149806,2.4109,3504.6,3504.1,2.85374]
[1721205149996,2.853,3505.1,3503.2,2.25]
[1721205149997,2.4109,3505.1,3504.6,2.85336]
[1721205150195,2.4109,3505.1,3504.0,3.02]
[1721205150196,2.4109,3505.1,3504.7,2.8533]
[1721205150552,4.27540475,3505.9,3503.7,2.85412]
[1721205150553,2.4085,3505.6,3504.9,2.85312]
[1721205150707,2.4085,3505.6,3504.2,5.87371]
[1721205150708,2.4085,3505.6,3505.1,2.85293]
[1721205150894,2.4085,3506.1,3505.3,2.85276]
[1721205151095,3.378321,3506.0,3505.3,2.85276]
[1721205151401,3.378321,3506.0,3505.4,2.85273]
[1721205151402,0.526061,3506.0,3505.4,2.85273]
[1721205151611,2.4085,3506.1,3505.5,2.85264]
[1721205151850,2.85183,3506.6,3505.8,2.85236]
[1721205152336,2.85186,3506.5,3505.8,2.85236]
[1721205152546,2.85186,3506.5,3504.5,9.06]
[1721205152547,2.85226,3506.0,3505.0,2.853]
[1721205152703,2.2805,3506.7,3505.0,2.853]
[1721205152704,2.85234,3505.9,3505.0,2.853]
[1721205153043,5.26119,3505.7,3503.7,10.36]
[1721205153350,5.26119,3505.7,3503.3,1.7]
[1721205153351,2.4087,3505.7,3504.0,2.85382]
[1721205153639,2.4087,3505.7,3503.1,0.2858]
[1721205153640,2.4087,3504.8,3503.8,2.85403]
[1721205153808,2.4087,3504.8,3503.1,3.3058]
[1721205153809,2.4087,3504.8,3504.0,2.8538]
[1721205154010,2.4087,3504.8,3504.1,2.85376]
[1721205154331,2.4087,3504.8,3504.4,2.85352]
[1721205154514,2.4087,3504.8,3504.2,2.8537]
[1721205154704,5.788118,3504.8,3504.0,2.85386]
[1721205154905,2.85339,3504.6,3503.4,2.85435]
[1721205155133,2.85364,3504.3,3503.5,2.85428]
[1721205155655,2.85364,3504.3,3503.3,2.85444]
[1721205155814,2.85381,3504.1,3503.2,2.85452]
[1721205156142,5.788128,3504.8,3502.9,3.02]
[1721205156143,2.85357,3504.4,3502.9,3.02]
[1721205156323,2.85364,3504.3,3503.5,2.85421]
[1721205156523,2.85377,3504.2,3503.3,2.85438]
[1721205156941,2.85364,3504.3,3503.4,2.85434]
[1721205157132,2.85348,3504.5,3502.8,0.29640752]
[1721205157133,2.85348,3504.5,3503.6,2.85417]
[1721205157914,2.85348,3504.5,3503.7,2.85411]
[1721205158115,2.85331,3504.7,3503.9,2.85396]
[1721205158341,2.85331,3504.7,3502.8,0.29640752]
[1721205158342,2.4087,3504.8,3504.2,2.85369]
[1721205158515,2.3285,3505.4,3504.4,2.85355]
[1721205158729,3.23636347,3505.4,3504.4,2.85355]
[1721205158936,6.08911347,3505.4,3504.4,2.85355]
[1721205159230,2.85304,3505.1,3504.0,2.8538]
[1721205159416,2.85307,3505.0,3504.2,2.85366]
[1721205159623,4.423669,3505.0,3504.2,2.85366]
[1721205159819,2.85339,3504.6,3503.6,2.85415]
[1721205160020,2.3078,3504.5,3502.9,2.85476]
[1721205160257,2.3078,3504.5,3502.7,1.7]
[1721205160415,2.3078,3504.5,3504.0,2.8538]
[1721205160616,2.53858,3504.5,3502.7,3.2858]
[1721205160817,5.16129,3504.5,3503.6,2.85415]
[1721205161057,2.85356,3504.4,3503.6,2.85415]
[1721205161221,2.85356,3504.4,3503.4,2.85431]
[1721205161765,2.85356,3504.4,3502.8,3.15125752]
[1721205161766,2.85367,3504.3,3502.8,3.15125752]
[1721205162071,2.85367,3504.3,3503.4,2.85429]
[1721205162364,0.801503,3504.3,3503.1,2.8546]
[1721205162559,0.801503,3504.3,3503.2,2.85447]
[1721205162560,2.8539,3504.0,3503.2,2.85447]
[1721205162760,2.8539,3504.0,3503.0,2.85469]
[1721205162979,2.85414,3503.7,3502.8,3.15125752]
[1721205163279,2.3193,3503.6,3502.8,3.15125752]
[1721205163765,5.17352,3503.6,3502.8,3.15125752]
[1721205164537,2.3193,3503.6,3502.9,2.85477]
[1721205164727,2.3193,3503.6,3503.0,2.85469]
[1721205165478,2.3193,3503.6,3502.8,0.29640752]
[1721205165699,2.85429,3503.5,3502.8,0.29640752]
[1721205166052,5.54899472,3503.6,3502.8,0.29640752]
[1721205166053,2.85437,3503.4,3502.8,0.29640752]
[1721205166452,2.85445,3503.3,3502.8,0.29640752]
[1721205166868,2.3193,3503.6,3502.8,0.29640752]
[1721205167077,2.3193,3503.6,3503.0,2.85469]
[1721205167278,2.85391,3504.0,3503.0,2.85469]
[1721205167445,2.4323,3504.4,3503.4,2.85429]
[1721205167446,5.28588,3504.4,3503.4,2.85429]
[1721205167646,5.28588,3504.4,3503.5,2.85423]
[1721205167647,2.85363,3504.3,3503.5,2.85423]
[1721205167981,0.813932,3504.3,3502.8,3.02]
[1721205168293,5.28586,3504.4,3503.7,2.85411]
[1721205168657,2.4323,3504.4,3503.7,2.85411]
[1721205168845,2.4323,3504.4,3503.8,2.85401]
[1721205169356,5.28587,3504.4,3503.5,2.85425]
[1721205169556,5.28587,3504.4,3503.6,2.8542]
[1721205169892,2.8537,3504.3,3503.1,3.15126787]
[1721205170049,2.8538,3504.1,3503.1,3.15126787]
[1721205170391,2.8538,3504.1,3503.3,2.85444]
[1721205170772,2.85395,3504.0,3503.2,2.85453]
[1721205172039,0.570775,3504.0,3503.1,0.29668787]
[1721205172243,6.09983,3504.4,3503.1,0.29668787]
[1721205172244,2.3894,3503.4,3503.1,0.29668787]
[1721205172489,2.3894,3503.4,3502.8,2.85485]
[1721205172790,2.3894,3503.4,3502.8,3.15161106]
[1721205173297,2.3894,3503.4,3502.9,2.85477]
[1721205173464,2.3894,3503.4,3502.8,3.15156106]
[1721205173789,2.3894,3503.4,3503.0,2.85468]
[1721205174144,2.8539,3504.0,3503.4,2.85434]
[1721205174145,2.3894,3504.0,3503.4,2.85434]
[1721205174342,2.854,3503.9,3503.0,2.85461]
[1721205174580,2.854,3503.9,3503.1,2.85459]
[1721205174783,2.85406,3503.8,3503.1,2.85459]
[1721205175086,2.85406,3503.8,3502.8,3.15158106]
[1721205175264,2.85406,3503.8,3502.9,2.85477]
[1721205175265,2.85427,3503.6,3502.9,2.85477]
[1721205175685,2.85429,3503.5,3502.8,0.29676106]
[1721205176028,2.85443,3503.4,3502.8,0.29676106]
[1721205176186,2.85467,3503.1,3502.8,0.29676106]
[1721205177298,2.85467,3503.1,3502.3,2.85525]
[1721205178124,2.8547,3503.0,3502.2,2.85529]
[1721205178319,2.8547,3503.0,3502.1,2.85541]
[1721205178525,5.1513,3503.5,3502.2,2.85531]
[1721205178725,2.85477,3503.0,3502.2,2.85531]
[1721205178939,2.85477,3503.0,3502.1,0.29681053]
[1721205178940,2.85479,3502.9,3502.1,0.29681053]
[1721205179093,2.85479,3502.9,3502.2,2.8553]
[1721205179325,2.85479,3502.9,3502.1,0.29681053]
[1721205179709,2.85479,3502.9,3502.2,2.85528]
[1721205179911,2.85462,3503.1,3502.2,2.85528]
[1721205180134,2.85453,3503.2,3502.6,2.85501]
[1721205180509,2.85449,3503.3,3502.6,2.85501]
[1721205181033,2.85453,3503.2,3502.6,2.85501]
[1721205181201,0.66195377,3503.4,3502.6,2.85501]
[1721205181405,2.85452,3503.3,3502.6,2.85501]
[1721205182326,0.44764886,3503.2,3502.6,2.85501]
[1721205182536,0.44764886,3503.2,3502.7,2.85492]
[1721205182685,0.44764886,3503.2,3502.9,2.85476]
[1721205182892,2.297,3503.5,3502.9,2.85476]
[1721205183430,0.89740475,3504.1,3503.3,2.85444]
[1721205183431,6.05755475,3504.1,3503.3,2.85444]
[1721205183633,2.85396,3503.9,3503.3,2.85444]
[1721205184302,2.85396,3503.9,3503.1,2.85459]
[1721205184609,0.49476144,3504.0,3502.5,2.85509]
[1721205184610,2.8545,3503.3,3502.5,2.85509]
[1721205184929,3.66595,3503.3,3502.5,2.85509]
[1721205185133,3.66595,3503.3,3502.3,2.85525]
[1721205185337,2.85462,3503.1,3502.4,2.85518]
[1721205186128,3.66595,3503.3,3502.5,2.85509]
[1721205186349,2.85466,3503.1,3502.3,2.85521]
[1721205186489,2.85466,3503.1,3502.1,3.15219053]
[1721205186690,2.85477,3502.9,3502.3,2.85524]
[1721205186920,2.85477,3502.9,3502.2,2.85529]
[1721205186921,2.85463,3503.1,3502.4,2.85517]
[1721205187632,2.85469,3503.0,3502.4,2.85517]
[1721205187923,3.30310475,3503.4,3502.4,2.85517]
[1721205188128,2.4057,3503.4,3502.9,2.85477]
[1721205188513,2.4057,3503.4,3503.0,2.85468]
[1721205189536,5.24207,3503.9,3503.1,2.85454]
[1721205189701,2.85404,3503.8,3503.1,2.85454]
[1721205190338,2.85404,3503.8,3503.2,2.85452]
[1721205190712,4.35396534,3503.9,3503.2,2.85452]
[1721205190908,6.31053059,3503.9,3503.2,2.85452]
[1721205191700,7.20793534,3503.9,3503.2,2.85452]
[1721205192007,6.31053059,3503.9,3503.2,2.85452]
[1721205192211,0.89740475,3504.0,3503.5,2.85421]
[1721205192427,5.13546,3504.4,3503.6,0.05707914]
[1721205192428,2.2819,3504.4,3503.6,0.05707914]
[1721205192625,0.44760876,3504.5,3504.0,2.85383]
[1721205192839,0.44760876,3504.5,3503.8,2.85402]
[1721205192840,0.44760876,3504.5,3503.8,2.85398]
[1721205193138,0.44760876,3504.5,3504.3,2.85357]
[1721205193325,2.2819,3504.9,3504.5,2.85346]
[1721205193937,2.85323,3504.8,3503.9,2.8539]
[1721205194140,3.75071475,3504.7,3503.5,2.85422]
[1721205194438,3.02986709,3504.9,3503.0,7.36]
[1721205194439,2.85411,3503.8,3503.0,10.21467]
[1721205194605,2.85414,3503.7,3502.8,2.85482]
[1721205194925,2.85402,3503.9,3503.1,2.85461]
[1721205195107,2.85411,3503.8,3503.1,2.85461]
[1721205195842,3.93191644,3503.9,3503.1,2.85461]
[1721205196001,2.85413,3503.7,3502.9,2.85476]
[1721205196325,2.85462,3503.1,3502.4,3.1519392]
[1721205196536,2.4606,3503.4,3502.5,2.85509]
[1721205196537,2.85453,3503.3,3502.5,2.85509]
[1721205196706,2.85453,3503.3,3502.4,3.1519392]
[1721205196901,2.85461,3503.1,3502.4,3.1519392]
[1721205197345,0.89740475,3503.3,3502.6,2.85495]
[1721205197638,2.85445,3503.3,3502.6,2.85495]
[1721205198219,3.35800475,3503.4,3502.6,2.85495]
[1721205198454,0.89740475,3503.2,3502.6,2.85495]
[1721205198671,3.75185475,3503.3,3502.6,2.85495]
[1721205199030,0.89740475,3503.3,3502.6,2.85495]
[1721205199346,0.89740475,3503.2,3502.6,2.85495]
[1721205200137,0.89740475,3503.3,3502.9,2.85476]
[1721205200555,0.89740475,3503.4,3502.9,2.85476]
[1721205200868,1.19653967,3503.6,3502.9,2.85476]
[1721205200869,0.89740475,3503.3,3502.9,2.85476]
[1721205201220,0.89740475,3503.3,3502.5,2.85504]
[1721205201421,0.89740475,3503.2,3502.5,2.85504]
[1721205201668,0.89740475,3503.0,3502.5,2.85504]
[1721205201900,0.89740475,3503.1,3502.3,2.8552]
[1721205202169,0.89740475,3503.0,3502.4,2.85516]
[1721205202363,0.89740475,3503.1,3502.4,2.85516]
[1721205202566,0.89740475,3503.2,3502.6,2.85501]
[1721205202771,0.89740475,3503.2,3502.4,3.15198497]
[1721205202772,0.89740475,3503.1,3502.4,3.15198497]
[1721205203065,0.89740475,3503.1,3502.6,2.85501]
[1721205203278,4.34843105,3503.4,3502.6,2.85501]
[1721205203279,0.89740475,3503.2,3502.6,2.85501]
[1721205203626,0.89740475,3503.2,3502.7,2.85492]
[1721205204136,0.89740475,3503.1,3502.7,2.85489]
[1721205204355,0.89740475,3503.1,3502.8,2.8548]
[1721205204661,0.89740475,3503.1,3502.9,2.85476]
[1721205204876,0.89740475,3503.1,3502.6,2.85499]
[1721205204877,0.89740475,3503.2,3502.7,2.85489]
[1721205205021,0.89740475,3503.2,3502.6,2.85499]
[1721205205221,0.89740475,3503.2,3502.8,2.85484]
[1721205205479,0.89740475,3503.1,3502.8,2.85484]
[1721205205698,0.89740475,3503.1,3502.9,2.85476]
[1721205205828,2.8542,3503.6,3503.0,2.85469]
[1721205205829,0.89740475,3503.2,3503.0,2.85469]
[1721205206027,0.89740475,3503.3,3503.0,2.85469]
[1721205206525,1.19653967,3503.5,3503.3,2.85445]
[1721205206526,0.89740475,3503.4,3503.3,2.85445]
[1721205206757,0.89740475,3503.8,3503.5,2.85424]
[1721205207164,0.89740475,3504.0,3503.8,2.85404]
[1721205207374,0.89740475,3504.0,3503.4,2.85432]
[1721205207559,0.89740475,3503.9,3503.4,2.85432]
[1721205208073,0.89740475,3503.7,3503.4,2.85432]
[1721205208230,0.89740475,3503.8,3503.2,2.85453]
[1721205208431,0.89740475,3503.7,3503.2,2.85453]
[1721205208675,0.89740475,3503.7,3503.0,2.85466]
[1721205208833,0.89740475,3503.7,3502.9,2.85476]
[1721205208834,3.75162475,3503.6,3502.9,2.85476]
[1721205209175,3.15830475,3503.5,3503.0,2.85468]
[1721205209372,3.15830475,3503.5,3503.2,2.85451]
[1721205209579,0.89740475,3503.6,3503.3,2.85438]
[1721205209779,0.89740475,3503.5,3503.3,2.85438]
[1721205210636,0.89740475,3503.6,3503.3,2.85438]
[1721205210884,3.75161475,3503.6,3502.8,2.85479]
[1721205211088,0.89740475,3503.4,3502.8,2.85479]
[1721205211288,0.89740475,3503.2,3502.6,2.85501]
[1721205211493,0.89740475,3503.1,3502.6,2.85501]
[1721205211839,0.89740475,3503.2,3502.7,2.85492]
[1721205212046,0.89740475,3503.3,3503.0,2.85469]
[1721205212273,0.89740475,3503.5,3503.0,2.85469]
[1721205212478,0.89740475,3503.5,3503.2,2.85453]
[1721205212786,1.49499332,3503.8,3503.4,2.85431]
[1721205212787,0.89740475,3503.8,3503.4,2.85431]
[1721205212939,0.89740475,3503.9,3503.6,2.85417]
[1721205213145,0.89740475,3504.1,3503.7,2.85406]
[1721205213384,2.3056,3504.6,3503.9,2.85395]
[1721205213385,0.89740475,3504.0,3503.9,2.85395]
[1721205213590,1.19653967,3504.0,3503.5,2.85425]
[1721205213771,0.89692204,3503.8,3503.6,2.85413]
[1721205213979,0.89692204,3503.8,3503.7,2.85412]
[1721205214290,0.89692204,3504.0,3503.7,2.85412]
[1721205214683,1.19653967,3504.1,3503.7,2.85412]
[1721205214684,0.89692204,3503.9,3503.7,2.85412]
[1721205215272,0.89692204,3503.9,3503.8,2.85404]
[1721205215585,0.89692204,3504.1,3503.9,2.85396]
[1721205216972,0.89692204,3504.1,3504.0,2.85388]
[1721205217347,0.89692204,3504.2,3504.0,2.85388]
[1721205217906,0.89692204,3504.2,3504.1,2.85379]
[1721205218200,0.89692204,3504.3,3504.2,2.85371]
[1721205218483,1.19653967,3504.3,3504.2,2.85371]
[1721205219083,1.19653967,3504.3,3503.8,2.85399]
[1721205219269,1.19653967,3504.3,3503.8,2.85398]
[1721205219270,0.89679098,3504.0,3503.8,2.85398]
[1721205219469,0.89679098,3504.0,3503.9,2.85396]
[1721205219692,0.89679098,3504.2,3503.9,2.85396]
[1721205219899,0.89679098,3504.2,3503.4,2.85429]
[1721205219900,0.89679098,3504.0,3503.4,2.85429]
[1721205220099,0.89679098,3504.0,3503.6,2.8542]
[1721205220256,0.89679098,3503.9,3503.6,2.8542]
[1721205220453,0.89679098,3503.9,3502.7,0.29676437]
[1721205220454,0.49471006,3503.9,3502.7,0.29676437]
[1721205220780,0.89679098,3503.6,3502.7,0.29676437]
[1721205221106,0.89679098,3503.3,3502.7,3.15164437]
[1721205221258,0.89679098,3503.4,3502.8,2.85484]
[1721205221997,4.05082967,3503.5,3502.7,0.29676437]
[1721205221998,0.89679098,3503.3,3502.7,0.29676437]
[1721205222295,0.89679098,3503.4,3502.8,2.8548]
[1721205222464,0.89679098,3503.3,3502.8,2.8548]
[1721205223000,4.05089967,3503.5,3503.1,2.85456]
[1721205223001,0.89679098,3503.4,3503.1,2.85456]
[1721205224490,0.89679098,3503.4,3503.2,2.85451]
[1721205224870,0.89679098,3503.4,3503.3,2.85445]
[1721205225299,0.89679098,3503.4,3503.2,2.85451]
[1721205226005,0.89679098,3503.4,3503.3,2.85445]
[1721205226209,0.89679098,3503.4,3503.1,2.85457]
[1721205226364,0.89679098,3503.4,3503.3,5.7089]
[1721205226565,1.79401942,3504.0,3503.5,2.85428]
[1721205226566,0.89679098,3503.9,3503.5,2.85428]
[1721205226803,0.89679098,3503.9,3503.7,2.85411]
[1721205227114,0.89679098,3504.1,3503.7,2.85411]
[1721205227280,0.89679098,3504.0,3503.7,2.85411]
[1721205230173,0.89679098,3504.1,3503.7,2.85411]
[1721205230569,0.89679098,3503.9,3503.7,2.85411]
[1721205230770,0.89679098,3503.9,3503.5,2.85422]
[1721205231012,0.89679098,3503.8,3503.5,2.85422]
[1721205231185,0.89679098,3503.8,3503.6,2.8542]
[1721205231505,0.89679098,3503.9,3503.6,2.8542]
[1721205232907,0.89679098,3503.9,3503.7,2.85412]
[1721205233108,1.19653967,3504.1,3503.7,2.85412]
[1721205233109,0.89679098,3503.8,3503.7,2.85412]
[1721205233621,1.19653967,3504.0,3503.5,2.85422]
[1721205233622,0.89679098,3503.9,3503.5,2.85422]
[1721205233782,0.89679098,3503.9,3502.9,0.29642167]
[1721205233783,0.89679098,3503.7,3503.2,2.85452]
[1721205233984,0.89679098,3503.6,3503.2,2.85452]
[1721205234184,0.89679098,3503.6,3503.1,2.8546]
[1721205234185,0.89679098,3503.6,3502.9,3.15115167]
[1721205234381,0.89679098,3503.5,3503.1,2.85456]
[1721205234788,0.89679098,3503.5,3502.9,3.15113167]
[1721205234985,0.89679098,3503.5,3503.0,2.85462]
[1721205235322,0.89679098,3503.4,3503.0,2.85462]
[1721205237115,0.89679098,3503.4,3502.9,0.29642167]
[1721205237116,0.89679098,3503.4,3503.3,2.85445]
[1721205237329,0.89679098,3503.9,3503.8,2.85404]
[1721205237511,1.19653967,3504.1,3503.6,2.85417]
[1721205237512,0.89679098,3504.0,3503.6,2.85417]
[1721205237829,0.89679098,3503.7,3503.3,2.85444]
[1721205237996,0.89679098,3503.7,3503.3,2.85438]
[1721205238427,0.89679098,3503.7,3503.4,2.85435]
[1721205239424,0.89679098,3503.6,3503.4,2.85435]
[1721205239803,0.89679098,3503.6,3503.2,2.85452]
[1721205239987,0.89679098,3503.5,3503.2,2.85452]
[1721205240331,0.89679098,3503.4,3503.0,2.85465]
[1721205240492,0.89679098,3503.3,3503.0,2.85465]
[1721205240693,0.89679098,3503.3,3502.8,2.85481]
[1721205241026,0.89679098,3503.0,3502.8,2.85481]
[1721205241807,0.89679098,3503.0,3502.6,2.85499]
[1721205242021,0.89679098,3503.0,3502.5,2.85506]
[1721205242223,0.89679098,3502.9,3502.5,2.85506]
[1721205242727,0.89679098,3502.9,3502.7,2.85493]
[1721205243548,0.89679098,3502.9,3502.6,2.85501]
[1721205243714,0.89679098,3502.9,3502.6,5.70995]
[1721205244099,0.89679098,3502.9,3502.7,2.85491]
[1721205244432,0.89679098,3502.9,3502.4,2.85516]
[1721205244654,1.19653967,3503.1,3501.4,3.0]
[1721205244655,0.89679098,3502.8,3502.2,1.7]
[1721205244812,0.89679098,3503.1,3502.7,2.85494]
[1721205245140,0.89679098,3503.1,3502.8,2.85483]
[1721205245294,0.89679098,3503.3,3502.8,2.85483]
[1721205245757,0.89679098,3503.2,3502.8,2.85483]
[1721205246500,1.19653967,3503.4,3502.8,2.85483]
[1721205246501,0.89679098,3503.3,3502.8,2.85483]
[1721205247154,1.19653967,3503.4,3502.6,2.85495]
[1721205247155,0.89679098,3503.0,3502.6,2.85495]
[1721205247437,0.89679098,3503.0,3502.8,2.85483]
[1721205247738,0.89679098,3503.1,3502.8,2.85483]
[1721205247939,0.89679098,3503.2,3502.8,2.85483]
[1721205248238,0.89679098,3503.1,3502.8,2.85483]
[1721205248445,0.89679098,3503.1,3502.6,2.85495]
[1721205249040,0.89679098,3503.1,3502.7,2.85487]
[1721205249738,0.89679098,3503.0,3502.8,2.85485]
[1721205249899,0.89679098,3503.1,3502.8,2.85485]
[1721205250100,0.89679098,3503.2,3502.8,2.85485]
[1721205250348,0.89679098,3503.1,3502.6,2.85495]
[1721205250639,0.89679098,3503.1,3502.5,0.29650839]
[1721205250884,0.89679098,3503.1,3502.1,2.8554]
[1721205250885,0.89679098,3502.8,3502.1,2.8554]
[1721205251160,0.89679098,3502.7,3502.1,2.85535]
[1721205251735,0.89679098,3502.8,3502.2,2.85531]
[1721205252034,0.89679098,3502.9,3502.3,0.05710218]